bitfinex-derivatives/quotes_ETHF0:USTF0_20210407
["timestamp","ask_amount","ask_price","bid_price","bid_amount"]
[1617818046612,2.90695,1971.0,1970.9,2.90695]
[1617818047812,61.9354,1972.0,1970.9,2.90695]
[1617818048013,32.0,1972.5,1970.9,2.90695]
[1617818048214,2.0,1972.5,1971.0,73.9393]
[1617818048414,2.0,1972.5,1971.0,80.1093]
[1617818048615,85.0474,1972.7,1971.4,2.90695]
[1617818048914,115.0474,1972.7,1971.4,4.86935]
[1617818049114,85.0474,1972.7,1971.4,4.86935]
[1617818050415,115.0474,1972.7,1971.4,4.86935]
[1617818050615,2.90695,1971.5,1971.4,2.90695]
[1617818050917,2.90695,1971.5,1970.4,75.0616]
[1617818051615,67.8004,1971.1,1969.5,30.0]
[1617818051918,99.8699,1971.1,1969.4,70.7363]
[1617818052418,99.8699,1971.1,1969.5,6.1]
[1617818052618,99.8699,1971.1,1970.1,2.90695]
[1617818053217,69.8699,1971.1,1970.1,2.90695]
[1617818054621,2.0695,1971.1,1970.8,2.90695]
[1617818054824,32.4269,1971.8,1970.8,2.90695]
[1617818055419,32.4269,1971.8,1969.6,1.9501]
[1617818055622,62.2945,1971.2,1969.5,67.1802]
[1617818055823,65.0257,1971.2,1969.5,67.1802]
[1617818056224,65.0257,1971.2,1969.6,6.19]
[1617818056425,95.0257,1971.2,1969.6,6.19]
[1617818056728,95.0257,1971.2,1970.4,2.90695]
[1617818056925,95.0257,1971.2,1969.5,67.1802]
[1617818057267,77.6608,1970.2,1968.6,2.0]
[1617818057511,80.7222,1970.2,1968.2,96.4672]
[1617818057825,110.7222,1970.2,1968.8,6.39]
[1617818058025,33.0614,1970.2,1968.8,6.39]
[1617818058225,64.2615,1969.4,1967.6,30.0]
[1617818058426,66.3507,1969.4,1967.6,30.0]
[1617818058626,66.3507,1969.4,1968.9,2.90695]
[1617818059226,66.3507,1969.4,1967.8,2.0]
[1617818059659,66.3507,1969.4,1967.3,79.2134]
[1617818059780,2.0892,1969.4,1967.2,30.0]
[1617818060037,2.0892,1969.4,1968.0,58.7442]
[1617818060236,2.0,1970.1,1968.1,3.73]
[1617818060498,2.0,1970.4,1968.7,78.5306]
[1617818060732,76.9514,1970.9,1969.4,2.90695]
[1617818060938,30.0,1971.1,1970.0,60.2237]
[1617818061202,68.5464,1972.1,1970.0,62.4676]
[1617818061728,2.0,1972.0,1970.0,62.4676]
[1617818062129,32.0,1972.0,1970.0,62.4676]
[1617818062330,30.0,1972.0,1970.1,6.14]
[1617818062730,30.0,1972.0,1970.8,2.90695]
[1617818062929,30.0,1972.0,1970.8,4.83975]
[1617818063130,30.0,1972.0,1970.9,66.9288]
[1617818063530,0.50697531,1972.5,1970.9,66.9288]
[1617818063830,30.0,1972.3,1970.9,66.9288]
[1617818064331,0.50697531,1972.5,1970.9,66.9288]
[1617818064630,2.90695,1971.0,1970.9,66.9288]
[1617818064830,2.90695,1971.0,1970.8,4.83975]
[1617818068235,2.90695,1971.0,1970.8,2.90695]
[1617818068437,2.90695,1971.0,1970.4,64.7253]
[1617818068636,2.90695,1970.5,1970.4,64.7253]
[1617818068945,5.75965,1970.5,1970.1,2.90695]
[1617818070638,2.90695,1970.2,1970.1,2.90695]
[1617818070839,2.90695,1970.2,1969.7,60.9502]
[1617818072839,2.90695,1969.8,1969.7,60.9502]
[1617818073539,2.6576,1971.0,1969.7,60.9502]
[1617818073740,30.0,1971.2,1969.7,63.3432]
[1617818073941,0.02910116,1971.6,1969.7,2.393]
[1617818074241,0.02910116,1971.6,1970.5,65.1981]
[1617818074547,0.02916183,1971.7,1970.5,68.2025]
[1617818074743,2.90695,1970.6,1970.5,71.10945]
[1617818075943,2.90695,1970.6,1970.5,77.42945]
[1617818076744,2.90695,1970.8,1970.5,77.42945]
[1617818077745,2.90695,1970.8,1970.5,71.10945]
[1617818077953,2.90695,1970.8,1970.5,5.91135]
[1617818078746,2.90695,1970.6,1970.5,5.91135]
[1617818079646,2.90695,1970.6,1970.5,2.90695]
[1617818079856,2.90695,1970.6,1970.1,63.5003]
[1617818080852,75.4649,1971.5,1970.2,2.90695]
[1617818081351,30.0,1971.4,1970.2,2.90695]
[1617818081752,75.4649,1971.5,1970.2,2.90695]
[1617818082709,31.0257,1971.5,1969.5,2.0]
[1617818082954,71.7163,1970.9,1968.8,108.5025]
[1617818083320,30.0,1970.8,1968.8,106.5025]
[1617818083912,30.0,1970.8,1968.9,6.09]
[1617818084656,33.0026,1970.8,1968.9,6.09]
[1617818084857,33.0026,1970.8,1969.4,2.90695]
[1617818084858,32.0,1970.8,1969.4,2.90695]
[1617818086758,2.90695,1969.5,1969.4,2.90695]
[1617818087458,71.7163,1970.9,1969.4,9.01695]
[1617818087658,0.02914089,1971.2,1969.4,11.31735]
[1617818087959,0.29140892,1971.5,1969.9,81.1546]
[1617818087960,0.02916979,1971.5,1969.9,81.1546]
[1617818088259,0.29169795,1971.8,1970.0,6.15]
[1617818088260,0.029192,1971.8,1970.0,6.15]
[1617818088662,0.08760356,1972.0,1970.0,6.15]
[1617818088859,0.08760356,1972.0,1970.3,2.90695]
[1617818089059,0.08760356,1972.0,1970.3,5.11615]
[1617818089360,0.02920119,1972.0,1970.3,5.11615]
[1617818090061,0.029236,1971.9,1970.3,5.11615]
[1617818090766,2.90695,1970.4,1970.3,5.11615]
[1617818092687,2.90695,1970.4,1970.3,2.90695]
[1617818092878,5.28295,1970.4,1969.3,30.0]
[1617818093205,5.28295,1970.4,1969.2,84.0325]
[1617818093568,5.28295,1970.4,1969.6,6.12]
[1617818093971,5.28295,1970.4,1969.3,6.28]
[1617818094171,5.28295,1970.4,1969.2,84.0325]
[1617818094590,5.28295,1970.4,1969.3,6.16]
[1617818094878,2.376,1970.4,1969.5,2.90695]
[1617818096180,32.376,1970.4,1969.5,2.90695]
[1617818096573,2.376,1970.4,1969.5,2.90695]
[1617818097031,2.376,1970.4,1969.2,84.0325]
[1617818097032,67.6884,1970.7,1969.8,2.90695]
[1617818097176,67.6884,1970.7,1969.8,4.78115]
[1617818097720,0.2920517,1971.4,1969.8,4.78115]
[1617818097721,0.02921406,1971.3,1969.8,4.78115]
[1617818097874,0.02921406,1971.3,1970.0,78.2969]
[1617818098074,0.02923146,1971.6,1970.0,78.2969]
[1617818098350,0.02923146,1971.6,1970.1,6.22]
[1617818098491,0.02923336,1971.8,1970.1,6.22]
[1617818098876,0.02922932,1971.9,1970.8,2.90695]
[1617818099076,0.02922932,1971.9,1970.8,5.01275]
[1617818099276,0.02923215,1972.0,1970.8,5.01275]
[1617818099575,0.08770538,1972.0,1970.8,5.01275]
[1617818099979,0.02923215,1972.0,1970.8,5.01275]
[1617818100978,2.90695,1970.9,1970.8,5.01275]
[1617818101179,0.02923215,1972.0,1970.8,5.01275]
[1617818101481,0.02924303,1972.1,1970.9,89.4237]
[1617818102080,0.02924101,1972.2,1970.9,89.4237]
[1617818102481,0.029244,1972.3,1970.9,89.4237]
[1617818102980,0.029244,1972.3,1971.4,78.1729]
[1617818102981,2.029244,1972.3,1971.4,78.1729]
[1617818103180,30.0,1972.2,1971.4,81.1312]
[1617818103583,0.02925432,1972.0,1971.4,81.1312]
[1617818103988,0.0292629,1972.1,1971.4,81.1312]
[1617818104889,2.90695,1971.5,1971.4,81.1312]
[1617818106188,2.90695,1971.5,1971.4,2.9583]
[1617818107689,2.90695,1971.5,1971.4,84.457]
[1617818109003,0.02927677,1972.3,1971.4,84.457]
[1617818109395,0.02927677,1972.3,1971.4,90.837]
[1617818109597,0.02928694,1972.6,1971.4,90.837]
[1617818109898,0.02929484,1972.7,1971.4,84.457]
[1617818110295,0.02928438,1972.6,1971.4,84.457]
[1617818110696,0.029288,1972.7,1971.5,6.31]
[1617818110896,0.029288,1972.7,1971.6,2.90695]
[1617818111096,0.029288,1972.7,1971.4,84.457]
[1617818111697,0.0292631,1972.6,1971.4,84.457]
[1617818112499,0.02923806,1972.5,1971.4,81.4987]
[1617818112704,0.029219,1972.2,1971.4,81.4987]
[1617818112898,2.90695,1971.5,1971.4,81.4987]
[1617818113099,5.70205,1971.5,1970.5,2.90695]
[1617818115101,2.90695,1970.6,1970.5,2.90695]
[1617818117342,74.0769,1971.8,1970.5,2.90695]
[1617818117600,0.0291132,1972.3,1971.2,61.4732]
[1617818117801,0.0291132,1972.3,1971.2,64.1375]
[1617818118003,0.0291275,1972.5,1971.2,64.1375]
[1617818118429,0.058255,1972.6,1971.2,64.1375]
[1617818118430,0.0291404,1972.6,1971.2,64.1375]
[1617818118805,0.02914354,1972.7,1971.2,64.1375]
[1617818119008,0.02914354,1972.7,1971.8,2.90695]
[1617818119009,2.90695,1971.9,1971.8,2.90695]
[1617818119206,2.90695,1971.9,1971.8,5.01245]
[1617818120420,2.90695,1971.9,1971.8,2.1055]
[1617818120631,2.90695,1971.9,1971.2,2.6643]
[1617818120952,2.90695,1971.9,1970.1,132.8021]
[1617818120953,5.09175,1971.9,1970.1,30.0]
[1617818121198,2.90695,1971.1,1969.7,2.0]
[1617818121407,5.47195,1971.1,1969.7,2.0]
[1617818121834,5.47195,1971.1,1969.8,36.3]
[1617818122040,5.47195,1971.1,1969.8,38.3]
[1617818123211,2.565,1971.1,1970.6,2.90695]
[1617818125011,2.90695,1970.7,1970.6,2.90695]
[1617818126016,0.02914971,1972.0,1970.6,2.90695]
[1617818126216,0.02915453,1972.1,1970.6,35.84655]
[1617818126416,0.02915453,1972.1,1971.3,68.1302]
[1617818126623,0.02915453,1972.1,1971.3,71.181]
[1617818126816,0.02916628,1972.3,1971.4,6.09]
[1617818127018,0.02916628,1972.3,1971.6,2.90695]
[1617818127223,0.02923648,1972.2,1971.6,2.90695]
[1617818127417,0.02924783,1972.4,1971.6,2.90695]
[1617818127919,0.02924135,1972.5,1971.6,2.90695]
[1617818128618,0.02925135,1972.6,1971.6,2.90695]
[1617818129018,0.02925135,1972.6,1972.0,2.90695]
[1617818129219,0.02925135,1972.6,1972.0,5.87735]
[1617818131023,2.90695,1972.1,1972.0,2.9704]
[1617818131722,2.90695,1972.1,1971.8,2.90695]
[1617818133126,2.90695,1972.1,1972.0,2.90695]
[1617818133326,2.90695,1972.1,1972.0,4.87145]
[1617818133826,0.02924217,1972.8,1972.0,4.87145]
[1617818134026,0.02927413,1973.0,1972.0,4.87145]
[1617818134226,0.02927413,1973.0,1972.4,61.2667]
[1617818134426,0.02927413,1973.0,1972.4,63.136]
[1617818134628,0.05854826,1973.1,1972.4,63.136]
[1617818134629,0.02928566,1973.1,1972.4,63.136]
[1617818134827,0.0292932,1973.2,1972.4,63.136]
[1617818135127,0.02929031,1973.1,1972.5,2.90695]
[1617818136534,0.02930269,1973.2,1972.5,2.90695]
[1617818136737,0.02930269,1973.2,1972.6,6.24]
[1617818136936,0.02932035,1973.4,1972.6,6.24]
[1617818137140,0.02932035,1973.4,1973.0,2.90695]
[1617818137439,0.02932094,1973.5,1973.0,5.26425]
[1617818138537,0.0293061,1973.6,1973.0,5.26425]
[1617818139138,2.90695,1973.1,1973.0,5.26425]
[1617818142746,2.90695,1973.1,1973.0,2.90695]
[1617818146249,2.90695,1973.1,1973.0,9.06695]
[1617818147953,2.90695,1973.1,1973.0,11.49245]
[1617818153756,2.90695,1973.1,1973.0,5.33245]
[1617818154356,2.90695,1973.1,1973.0,11.54245]
[1617818155157,2.90695,1973.1,1973.0,5.33245]
[1617818155358,2.90695,1973.1,1973.0,2.90695]
[1617818155561,2.90695,1973.1,1973.0,9.22695]
[1617818156567,62.74205,1973.1,1973.0,2.90695]
[1617818158565,5.96565,1973.1,1973.0,2.90695]
[1617818159265,5.96565,1973.1,1972.5,79.8167]
[1617818159965,5.96565,1973.1,1972.4,2.90695]
[1617818160368,5.96565,1973.1,1972.0,30.0]
[1617818160666,65.1287,1973.0,1971.9,2.0]
[1617818160870,65.1287,1973.0,1971.5,66.2291]
[1617818161368,65.1287,1973.0,1971.8,2.90695]
[1617818162667,65.1287,1973.0,1971.9,6.28]
[1617818163468,65.1287,1973.0,1972.3,2.90695]
[1617818165370,2.90695,1972.4,1972.3,2.90695]
[1617818165571,6.01615,1972.4,1971.4,12.9647]
[1617818165771,69.6049,1972.3,1971.4,12.9647]
[1617818166268,69.6049,1972.3,1970.8,59.3952]
[1617818166669,69.6049,1972.3,1970.8,89.3952]
[1617818166869,69.6049,1972.3,1970.9,6.37]
[1617818167368,69.6049,1972.3,1971.3,2.90695]
[1617818167769,69.6049,1972.3,1971.4,6.34]
[1617818168171,69.6049,1972.3,1971.3,2.90695]
[1617818169575,2.90695,1971.4,1971.1,2.90695]
[1617818169772,4.97205,1971.4,1971.1,2.90695]
[1617818171374,4.97205,1971.4,1970.4,30.0]
[1617818171375,2.90695,1971.2,1970.9,2.90695]
[1617818171976,2.0651,1971.4,1970.9,2.90695]
[1617818172276,62.9793,1971.5,1971.0,6.09]
[1617818173378,2.90695,1971.1,1971.0,6.09]
[1617818173678,62.9793,1971.5,1971.0,6.09]
[1617818175479,62.9793,1971.5,1971.2,2.90695]
[1617818175978,62.9793,1971.5,1970.5,6.24]
[1617818176279,65.9455,1971.5,1970.4,30.0]
[1617818176796,65.9455,1971.5,1970.5,6.22]
[1617818177481,65.9455,1971.5,1970.9,2.90695]
[1617818179282,65.9455,1971.5,1970.4,30.0]
[1617818179582,2.90695,1970.7,1970.6,2.90695]
[1617818180084,65.9455,1971.5,1970.6,9.08695]
[1617818180783,62.9793,1971.5,1970.6,9.08695]
[1617818181584,62.9793,1971.5,1971.3,2.90695]
[1617818183187,62.9793,1971.5,1971.3,5.38685]
[1617818183590,2.90695,1971.4,1971.3,5.38685]
[1617818184790,2.90695,1971.4,1971.3,2.4799]
[1617818185491,62.9793,1971.5,1971.1,2.90695]
[1617818186094,62.9793,1971.5,1971.2,6.23]
[1617818187592,2.90695,1971.3,1971.2,6.23]
[1617818188093,2.90695,1971.3,1971.1,2.90695]
[1617818191098,5.64005,1971.3,1971.1,2.90695]
[1617818192400,2.90695,1971.3,1971.1,2.90695]
[1617818192600,2.90695,1971.3,1971.2,6.14]
[1617818193899,2.90695,1971.3,1971.1,2.90695]
[1617818194499,5.12755,1971.3,1971.1,2.90695]
[1617818195900,2.90695,1971.3,1971.1,2.90695]
[1617818196122,62.9793,1971.5,1971.2,6.17]
[1617818197801,2.90695,1971.3,1971.2,6.17]
[1617818203113,2.90695,1971.3,1971.1,2.90695]
[1617818206715,2.90695,1971.3,1970.4,30.0]
[1617818207116,70.2758,1970.7,1970.1,2.0]
[1617818207350,2.8582,1970.7,1969.8,30.0]
[1617818207520,70.2972,1970.1,1969.8,30.0]
[1617818207832,72.7753,1970.1,1970.0,2.90695]
[1617818208120,72.7753,1970.1,1970.0,9.02695]
[1617818209221,2.4781,1970.1,1970.0,9.02695]
[1617818211324,2.4781,1970.1,1970.0,2.90695]
[1617818213028,2.90695,1970.2,1970.0,2.90695]
[1617818214627,2.90695,1970.2,1970.1,6.23]
[1617818215232,2.90695,1970.2,1970.0,2.90695]
[1617818215931,5.67595,1970.2,1970.0,2.90695]
[1617818216744,5.67595,1970.2,1969.1,2.0]
[1617818216932,5.67595,1970.2,1969.0,71.1081]
[1617818217133,80.2885,1969.8,1969.0,71.1081]
[1617818217332,82.2135,1969.8,1969.0,71.1081]
[1617818217532,82.2135,1969.8,1969.1,6.09]
[1617818217832,82.2135,1969.8,1969.7,2.90695]
[1617818219833,85.12045,1969.8,1969.7,2.90695]
[1617818221135,4.83195,1969.8,1969.7,2.90695]
[1617818222535,2.90695,1969.8,1969.7,2.90695]
[1617818222735,74.1506,1970.3,1969.7,5.54155]
[1617818222964,74.1506,1970.3,1969.7,11.93155]
[1617818223851,2.90695,1970.4,1970.2,2.90695]
[1617818224038,2.90695,1970.4,1970.2,5.75375]
[1617818225140,64.2495,1970.3,1970.2,5.75375]
[1617818225541,64.2495,1970.3,1969.3,64.4612]
[1617818225742,64.2495,1970.3,1969.7,2.90695]
[1617818227944,2.90695,1970.2,1969.9,2.90695]
[1617818228246,2.90695,1970.2,1969.9,5.85915]
[1617818228647,2.90695,1970.2,1970.0,6.3]
[1617818229851,2.90695,1970.0,1969.9,2.90695]
[1617818236761,64.2495,1970.3,1969.9,2.90695]
[1617818236962,64.2495,1970.3,1969.9,11.72315]
[1617818237964,64.2495,1970.3,1970.2,2.90695]
[1617818238865,2.90695,1970.4,1970.2,76.94845]
[1617818242086,2.90695,1970.4,1970.2,74.0415]
[1617818246682,2.90695,1970.4,1970.0,2.90695]
[1617818246982,79.02905,1970.4,1970.0,2.90695]
[1617818247984,2.90695,1970.1,1970.0,2.90695]
[1617818252095,2.90695,1970.1,1970.0,9.18695]
[1617818252892,2.90695,1970.1,1969.6,56.9267]
[1617818253392,5.43825,1970.1,1969.6,56.9267]
[1617818253753,5.43825,1970.1,1969.7,6.18]
[1617818254094,2.90695,1969.8,1969.7,9.08695]
[1617818254796,2.90695,1969.8,1969.7,2.90695]
[1617818258097,2.90695,1969.8,1969.6,56.9267]
[1617818258798,2.90695,1969.8,1969.5,2.90695]
[1617818259000,69.18175,1969.8,1969.5,2.90695]
[1617818259399,69.16059791,1969.8,1969.5,2.90695]
[1617818260119,2.90695,1969.6,1969.5,2.90695]
[1617818261605,2.90695,1969.6,1969.5,9.27695]
[1617818265307,5.37955,1969.6,1969.5,9.27695]
[1617818265906,5.37955,1969.6,1969.5,2.90695]
[1617818267909,5.37955,1969.6,1969.5,9.26695]
[1617818269712,2.90695,1969.6,1969.5,9.26695]
[1617818270613,2.90695,1969.6,1969.5,2.90695]
[1617818272414,2.90695,1969.6,1969.5,8.99695]
[1617818276317,2.90695,1969.6,1969.5,10.01275]
[1617818276517,2.90695,1969.6,1969.5,8.99695]
[1617818281322,2.90695,1969.6,1969.5,2.90695]
[1617818283623,2.90695,1969.6,1969.5,9.03695]
[1617818284025,2.90695,1969.6,1969.5,2.90695]
[1617818288235,2.90695,1969.6,1969.5,79.83155]
[1617818288828,2.90695,1969.6,1969.5,2.90695]
[1617818290933,61.0013,1969.4,1969.0,62.9992]
[1617818291136,63.4656,1969.4,1969.0,62.9992]
[1617818291636,63.4656,1969.4,1969.1,6.16]
[1617818292234,2.90695,1969.2,1969.1,9.06695]
[1617818292434,2.90695,1969.2,1969.1,2.90695]
[1617818294134,2.90695,1969.2,1969.1,9.20695]
[1617818294835,2.90695,1969.2,1969.1,2.90695]
[1617818297936,2.90695,1969.2,1969.1,4.85495]
[1617818298382,2.90695,1969.4,1969.1,11.05495]
[1617818298536,2.90695,1969.4,1969.2,76.9381]
[1617818298744,2.90695,1969.4,1969.3,6.22]
[1617818299239,2.90695,1969.4,1969.1,2.90695]
[1617818299737,5.92175,1969.4,1969.1,2.90695]
[1617818300337,2.90695,1969.2,1969.1,2.90695]
[1617818301738,77.77805,1969.2,1969.1,2.90695]
[1617818303041,79.87485,1969.2,1969.1,2.90695]
[1617818303440,5.00375,1969.2,1969.1,2.90695]
[1617818304446,5.00375,1969.2,1968.9,2.90695]
[1617818304645,62.7008,1969.1,1968.0,88.5832]
[1617818304850,5.00375,1969.2,1968.0,30.0]
[1617818305049,74.6536,1968.4,1968.0,30.0]
[1617818305347,74.6536,1968.4,1968.1,6.24]
[1617818305946,74.6536,1968.4,1968.0,6.16]
[1617818306146,74.6536,1968.4,1968.2,6.37]
[1617818306346,74.6536,1968.4,1968.3,2.90695]
[1617818306846,74.6536,1968.4,1968.3,9.07695]
[1617818307045,74.6536,1968.4,1968.3,2.90695]
[1617818307345,74.6536,1968.4,1968.3,9.10695]
[1617818308464,2.90695,1968.5,1968.3,9.10695]
[1617818309948,69.5909,1968.4,1968.3,9.10695]
[1617818315862,2.90695,1968.5,1968.3,9.10695]
[1617818317667,2.90695,1968.5,1968.3,12.00125]
[1617818318468,2.90695,1968.9,1968.3,12.00125]
[1617818318669,2.90695,1968.9,1968.6,65.5353]
[1617818319268,2.90695,1968.9,1968.7,6.28]
[1617818319467,2.90695,1968.9,1968.7,8.4235]
[1617818320372,2.0,1970.1,1968.7,8.4235]
[1617818320373,0.02912583,1970.6,1969.8,75.7726]
[1617818320575,2.90695,1969.9,1969.8,78.5472]
[1617818321872,2.90695,1969.9,1969.8,8.9446]
[1617818322081,2.90695,1969.9,1969.8,2.7746]
[1617818322373,2.90695,1969.9,1968.9,88.4158]
[1617818322573,71.8383,1969.7,1969.3,2.90695]
[1617818323373,74.0199,1969.7,1969.3,2.90695]
[1617818323975,2.1816,1969.7,1968.4,13.1234]
[1617818324191,67.4588,1969.0,1968.4,13.1234]
[1617818324380,69.7138,1969.0,1968.4,13.1234]
[1617818324675,69.7138,1969.0,1968.7,2.90695]
[1617818325076,69.7138,1969.0,1968.8,6.13]
[1617818325376,2.255,1969.0,1968.8,6.13]
[1617818325679,2.255,1969.0,1968.7,2.90695]
[1617818326175,2.1816,1969.7,1968.7,2.90695]
[1617818326375,2.1816,1969.7,1969.0,77.9727]
[1617818326576,2.90695,1969.1,1969.0,77.9727]
[1617818327685,2.90695,1969.1,1968.7,2.90695]
[1617818328383,2.90695,1969.1,1968.8,6.18]
[1617818328584,2.90695,1969.1,1969.0,2.90695]
[1617818329784,2.90695,1969.1,1968.8,2.4193]
[1617818329985,2.90695,1969.1,1968.5,84.6482]
[1617818330185,4.97755,1969.1,1968.5,84.6482]
[1617818330498,80.7396,1968.7,1968.5,2.90695]
[1617818330691,83.5528,1968.7,1968.5,2.90695]
[1617818331590,2.8132,1968.7,1968.5,2.90695]
[1617818332106,2.8132,1968.7,1968.6,6.23]
[1617818332690,5.72015,1968.7,1968.6,6.23]
[1617818333092,5.72015,1968.7,1968.5,2.90695]
[1617818333892,5.72015,1968.7,1968.6,6.35]
[1617818335308,2.90695,1968.7,1968.6,6.35]
[1617818335794,2.90695,1968.7,1968.6,8.5258]
[1617818338397,2.90695,1968.7,1968.5,2.90695]
[1617818338618,2.90695,1968.7,1968.3,2.90695]
[1617818339300,2.90695,1968.7,1968.4,6.24]
[1617818340599,59.6953,1968.9,1968.6,2.90695]
[1617818341006,59.6953,1968.9,1968.7,6.12]
[1617818342603,2.90695,1968.8,1968.7,6.12]
[1617818342915,5.64445,1968.8,1968.6,2.90695]
[1617818343505,82.96615,1968.8,1968.6,2.90695]
[1617818345505,5.64445,1968.8,1968.6,2.90695]
[1617818345907,68.19735,1968.8,1967.7,58.3833]
[1617818346707,65.2904,1968.8,1968.1,2.90695]
[1617818348811,2.90695,1968.2,1968.1,2.90695]
[1617818349012,5.72225,1968.2,1968.1,2.90695]
[1617818351616,5.72225,1968.2,1968.1,9.17695]
[1617818352123,5.72225,1968.2,1968.1,2.90695]
[1617818352626,5.72225,1968.2,1968.1,9.07695]
[1617818353329,5.72225,1968.2,1968.1,2.90695]
[1617818356616,69.60725,1968.2,1968.1,2.90695]
[1617818358720,69.60725,1968.2,1968.1,9.10695]
[1617818359421,69.60725,1968.2,1968.1,2.90695]
[1617818359827,69.60725,1968.2,1967.2,82.9487]
[1617818360022,63.8432,1967.5,1966.9,13.2203]
[1617818360225,65.8995,1967.5,1966.9,13.2203]
[1617818360546,65.8995,1967.5,1966.3,6.59095123]
[1617818360547,65.8995,1967.5,1966.2,6.39914008]
[1617818360754,2.0563,1967.5,1966.2,6.39914008]
[1617818360926,64.1399,1966.8,1966.1,5.3949015]
[1617818361138,66.2787,1966.8,1966.3,6.25]
[1617818361360,66.2787,1966.8,1966.2,3.37]
[1617818361625,66.2787,1966.8,1966.4,6.22]
[1617818361824,2.1388,1966.8,1966.4,6.22]
[1617818362024,2.1388,1966.8,1966.2,6.19]
[1617818362226,2.1388,1966.8,1966.5,6.37]
[1617818362626,2.1388,1966.8,1966.3,6.12]
[1617818362827,2.1388,1966.8,1966.7,2.90695]
[1617818363225,2.1388,1966.8,1966.7,9.03695]
[1617818364348,2.90695,1967.1,1966.7,9.03695]
[1617818364928,2.90695,1967.6,1967.0,2.90695]
[1617818365429,2.90695,1967.6,1967.1,6.33]
[1617818365628,2.90695,1967.6,1967.1,8.9852]
[1617818366830,2.90695,1967.6,1967.5,2.90695]
[1617818367031,2.90695,1967.6,1967.5,5.16545]
[1617818367937,2.90695,1967.6,1967.5,2.2585]
[1617818368133,2.90695,1967.6,1966.2,5.39452374]
[1617818368333,74.8028,1967.4,1966.1,5.39495252]
[1617818368735,74.8028,1967.4,1966.0,1.0266]
[1617818368934,74.8028,1967.4,1966.9,2.90695]
[1617818370535,2.39,1967.6,1966.9,2.90695]
[1617818370936,2.90695,1967.0,1966.9,66.37325]
[1617818372237,2.90695,1967.0,1966.9,2.90695]
[1617818372437,72.33355,1967.0,1966.9,2.90695]
[1617818372639,72.33355,1967.0,1965.9,14.6549]
[1617818372837,72.33355,1967.0,1965.9,13.6363]
[1617818373040,69.4266,1967.0,1966.0,2.90695]
[1617818373439,71.4266,1967.0,1966.0,9.21695]
[1617818374339,71.4266,1967.0,1966.0,2.90695]
[1617818374539,69.4266,1967.0,1966.0,2.90695]
[1617818375040,2.90695,1966.1,1966.0,2.90695]
[1617818375239,69.4266,1967.0,1966.0,2.90695]
[1617818375642,69.4266,1967.0,1966.1,6.21]
[1617818377043,2.0,1968.1,1966.7,2.90695]
[1617818377244,80.6095,1968.0,1966.7,5.44675]
[1617818377446,80.6095,1968.0,1966.8,6.39]
[1617818378360,80.6095,1968.0,1966.7,5.44675]
[1617818379046,80.6095,1968.0,1966.8,6.33]
[1617818379648,82.6095,1968.0,1966.8,6.33]
[1617818379847,82.6095,1968.0,1966.7,2.5398]
[1617818380051,112.6095,1968.0,1966.7,2.5398]
[1617818380349,112.6095,1968.0,1966.1,13.3526]
[1617818380551,115.1517,1968.0,1966.1,13.3526]
[1617818380949,115.1517,1968.0,1966.7,2.90695]
[1617818381148,34.5422,1968.0,1966.7,2.90695]
[1617818381348,34.5422,1968.0,1965.4,31.8965]
[1617818381547,80.9758,1967.1,1965.4,31.8965]
[1617818381749,83.251,1967.1,1965.4,30.0]
[1617818382148,83.251,1967.1,1965.5,6.32]
[1617818383049,83.251,1967.1,1966.3,2.90695]
[1617818384050,113.251,1967.1,1965.1,97.8895]
[1617818384249,32.2752,1967.1,1965.1,12.982]
[1617818384450,60.8759,1966.2,1965.1,12.982]
[1617818384649,63.4394,1966.2,1965.1,12.982]
[1617818384887,63.4394,1966.2,1965.2,6.31]
[1617818385060,63.4394,1966.2,1966.0,2.90695]
[1617818386051,2.5635,1966.2,1966.0,2.90695]
[1617818387053,2.90695,1966.1,1966.0,2.90695]
[1617818388855,2.90695,1966.1,1966.0,9.26695]
[1617818389153,2.90695,1966.1,1966.0,2.90695]
[1617818391759,2.90695,1966.1,1964.6,2.0]
[1617818391959,76.7078,1965.6,1964.6,2.0]
[1617818392160,78.978,1965.6,1964.5,30.0]
[1617818392560,78.978,1965.6,1964.6,6.15]
[1617818392860,78.978,1965.6,1964.4,1.0042]
[1617818393062,32.2702,1965.6,1964.4,1.0042]
[1617818393262,78.355,1964.7,1964.4,1.0042]
[1617818393562,81.2766,1964.7,1964.4,1.0042]
[1617818399772,0.02849715,1968.8,1964.4,1.0042]
[1617818399972,71.7875,1966.0,1964.5,6.38]
[1617818400872,30.0,1966.5,1964.5,6.38]
[1617818401172,66.2988,1964.9,1964.4,1.0042]
[1617818401379,69.254,1964.9,1964.4,1.0042]
[1617818401973,71.254,1964.9,1964.4,1.0042]
[1617818402283,101.254,1964.9,1964.4,1.0042]
[1617818402574,34.9552,1964.9,1964.4,1.0042]
[1617818403376,4.9552,1964.9,1964.4,1.0042]
[1617818403577,4.9552,1964.9,1962.3,32.0]
[1617818403775,4.9552,1964.9,1962.4,30.0]
[1617818403978,65.048,1964.1,1962.4,30.0]
[1617818404178,68.1143,1964.1,1962.4,30.0]